[Event "Titled Tuesday Blitz August 1 Late 2023"]
[White "Adewumi, Tanitoluwa"]
[Black "Gundam, Rohit"]
[WhiteFideId "30966396"]
[BlackFideId "75002809"]
[WhiteElo "2637"]
[BlackElo "2474"]
[Result "1-0"]
[Round "4"]
[TimeControl "180+1"]
[Date "2023.08.01"]
[WhiteClock "0:00:08"]
[BlackClock "0:00:00"]
[Board "61"]

1. e4 {[%clk 0:03:00]}  e5 {[%clk 0:02:57]} 2. Nf3 {[%clk 0:02:59]}  Nc6 {[%clk 0:02:57]} 3. Nc3 {[%clk 0:02:49]}  Nf6 {[%clk 0:02:57]} 4. Bb5 {[%clk 0:02:47]}  Nd4 {[%clk 0:02:42]} 5. O-O {[%clk 0:02:44]}  Nxb5 {[%clk 0:02:41]} 6. Nxb5 {[%clk 0:02:44]}  d6 {[%clk 0:02:37]} 7. d4 {[%clk 0:02:40]}  exd4 {[%clk 0:02:33]} 8. Nfxd4 {[%clk 0:02:36]}  Be7 {[%clk 0:02:24]} 9. Nc3 {[%clk 0:02:25]}  O-O {[%clk 0:02:24]} 10. Be3 {[%clk 0:02:23]}  Re8 {[%clk 0:02:22]} 11. Re1 {[%clk 0:02:20]}  Bf8 {[%clk 0:02:17]} 12. f3 {[%clk 0:02:17]}  b6 {[%clk 0:01:57]} 13. Bg5 {[%clk 0:02:04]}  Bb7 {[%clk 0:01:36]} 14. Qd3 {[%clk 0:01:49]}  h6 {[%clk 0:01:21]} 15. Bh4 {[%clk 0:01:45]}  g6 {[%clk 0:01:16]} 16. Nd5 {[%clk 0:01:28]}  Bg7 {[%clk 0:01:07]} 17. Nb5 {[%clk 0:00:59]}  Bxd5 {[%clk 0:00:58]} 18. exd5 {[%clk 0:00:59]}  g5 {[%clk 0:00:45]} 19. Bf2 {[%clk 0:00:50]}  a6 {[%clk 0:00:44]} 20. Nd4 {[%clk 0:00:43]}  Qd7 {[%clk 0:00:28]} 21. Nf5 {[%clk 0:00:34]}  Re5 {[%clk 0:00:24]} 22. Nxg7 {[%clk 0:00:32]}  Kxg7 {[%clk 0:00:24]} 23. Bd4 {[%clk 0:00:29]}  Rxe1+ {[%clk 0:00:19]} 24. Rxe1 {[%clk 0:00:29]}  Re8 {[%clk 0:00:17]} 25. Rxe8 {[%clk 0:00:20]}  Qxe8 {[%clk 0:00:18]} 26. Kf2 {[%clk 0:00:20]}  a5 {[%clk 0:00:14]} 27. Qf5 {[%clk 0:00:19]}  Qe7 {[%clk 0:00:13]} 28. c4 {[%clk 0:00:20]}  Qd8 {[%clk 0:00:10]} 29. b3 {[%clk 0:00:18]}  Qe7 {[%clk 0:00:10]} 30. a3 {[%clk 0:00:18]}  Qd8 {[%clk 0:00:09]} 31. b4 {[%clk 0:00:19]}  axb4 {[%clk 0:00:10]} 32. axb4 {[%clk 0:00:19]}  Qe7 {[%clk 0:00:10]} 33. b5 {[%clk 0:00:20]}  Qd8 {[%clk 0:00:10]} 34. h3 {[%clk 0:00:18]}  Qe7 {[%clk 0:00:09]} 35. g3 {[%clk 0:00:18]}  Qd8 {[%clk 0:00:09]} 36. f4 {[%clk 0:00:15]}  gxf4 {[%clk 0:00:08]} 37. Qxf4 {[%clk 0:00:13]}  Kg6 {[%clk 0:00:02]} 38. Kf3 {[%clk 0:00:10]}  Qe7 {[%clk 0:00:02]} 39. Bxf6 {[%clk 0:00:10]}  Qxf6 {[%clk 0:00:03]} 40. Qxf6+ {[%clk 0:00:09]}  Kxf6 {[%clk 0:00:03]} 41. Kf4 {[%clk 0:00:10]}  Kg6 {[%clk 0:00:03]} 42. g4 {[%clk 0:00:10]}  f6 {[%clk 0:00:03]} 43. h4 {[%clk 0:00:10]}  Kg7 {[%clk 0:00:02]} 44. Kf5 {[%clk 0:00:10]}  Kf7 {[%clk 0:00:03]} 45. h5 {[%clk 0:00:10]}  Kg7 {[%clk 0:00:01]} 46. Ke6 {[%clk 0:00:08]}  f5 {[%clk 0:00:01]} 47. gxf5 {[%clk 0:00:08]}  Kf8 {[%clk 0:00:00]} 48. Kf6 {[%clk 0:00:08]} 1-0


[Site "https://www.chess.com"]

[Event "Titled Tuesday Blitz August 1 Late 2023"]
[White "Rios Escobar, Adan"]
[Black "Araujo Sanchez, Josue"]
[WhiteFideId "3403645"]
[BlackFideId "6416896"]
[WhiteElo "2462"]
[BlackElo "2631"]
[Result "0-1"]
[Round "4"]
[TimeControl "180+1"]
[Date "2023.08.01"]
[WhiteClock "0:00:00"]
[BlackClock "0:01:26"]
[Board "63"]

1. d4 {[%clk 0:02:54]}  g6 {[%clk 0:02:57]} 2. g3 {[%clk 0:02:54]}  Bg7 {[%clk 0:02:57]} 3. Bg2 {[%clk 0:02:55]}  Nf6 {[%clk 0:02:58]} 4. e4 {[%clk 0:02:55]}  O-O {[%clk 0:02:58]} 5. Ne2 {[%clk 0:02:56]}  d6 {[%clk 0:02:59]} 6. O-O {[%clk 0:02:56]}  Nc6 {[%clk 0:02:58]} 7. Nbc3 {[%clk 0:02:57]}  e5 {[%clk 0:02:58]} 8. dxe5 {[%clk 0:02:57]}  Nxe5 {[%clk 0:02:57]} 9. f4 {[%clk 0:02:57]}  Nc6 {[%clk 0:02:58]} 10. h3 {[%clk 0:02:55]}  Be6 {[%clk 0:02:51]} 11. Be3 {[%clk 0:02:19]}  Re8 {[%clk 0:02:48]} 12. Qd2 {[%clk 0:02:16]}  Bc4 {[%clk 0:02:44]} 13. Rae1 {[%clk 0:02:13]}  h5 {[%clk 0:02:29]} 14. b3 {[%clk 0:02:12]}  Ba6 {[%clk 0:02:29]} 15. a4 {[%clk 0:02:12]}  Qd7 {[%clk 0:02:26]} 16. Nb5 {[%clk 0:02:07]}  Nxe4 {[%clk 0:02:25]} 17. Qd3 {[%clk 0:01:53]}  f5 {[%clk 0:02:21]} 18. c4 {[%clk 0:01:43]}  Nb4 {[%clk 0:02:19]} 19. Qb1 {[%clk 0:01:33]}  c6 {[%clk 0:02:18]} 20. Nbd4 {[%clk 0:01:31]}  d5 {[%clk 0:02:18]} 21. Qc1 {[%clk 0:00:59]}  c5 {[%clk 0:02:11]} 22. Nb5 {[%clk 0:00:50]}  d4 {[%clk 0:02:08]} 23. Rd1 {[%clk 0:00:45]}  Qe7 {[%clk 0:01:43]} 24. Bf2 {[%clk 0:00:40]}  Bxb5 {[%clk 0:01:37]} 25. axb5 {[%clk 0:00:40]}  d3 {[%clk 0:01:37]} 26. Rfe1 {[%clk 0:00:12]}  dxe2 {[%clk 0:01:30]} 27. Rxe2 {[%clk 0:00:12]}  Rad8 {[%clk 0:01:30]} 28. Rde1 {[%clk 0:00:12]}  Nd3 {[%clk 0:01:29]} 29. Qb1 {[%clk 0:00:06]}  Nxe1 {[%clk 0:01:29]} 30. Qxe1 {[%clk 0:00:06]}  Bd4 {[%clk 0:01:28]} 31. Bxd4 {[%clk 0:00:06]}  Rxd4 {[%clk 0:01:28]} 32. Kh2 {[%clk 0:00:05]}  Qd6 {[%clk 0:01:27]} 33. Re3 {[%clk 0:00:05]}  h4 {[%clk 0:01:27]} 34. Rf3 {[%clk 0:00:00]}  hxg3+ {[%clk 0:01:26]} 0-1


[Site "https://www.chess.com"]

[Event "Titled Tuesday Blitz August 1 Late 2023"]
[White "Harriott, Tyrell"]
[Black "Piesik, Piotr"]
[WhiteFideId "2086484"]
[BlackFideId "1136194"]
[WhiteElo "2449"]
[BlackElo "2615"]
[Result "0-1"]
[Round "4"]
[TimeControl "180+1"]
[Date "2023.08.01"]
[WhiteClock "0:00:03"]
[BlackClock "0:00:06"]
[Board "65"]

1. d4 {[%clk 0:02:55]}  c5 {[%clk 0:02:59]} 2. e3 {[%clk 0:02:55]}  Nf6 {[%clk 0:02:59]} 3. f4 {[%clk 0:02:50]}  d5 {[%clk 0:02:59]} 4. c3 {[%clk 0:02:50]}  Bf5 {[%clk 0:02:58]} 5. Ne2 {[%clk 0:02:49]}  Nbd7 {[%clk 0:02:56]} 6. Ng3 {[%clk 0:02:49]}  Be4 {[%clk 0:02:54]} 7. Nd2 {[%clk 0:02:45]}  Qb6 {[%clk 0:02:42]} 8. Ngxe4 {[%clk 0:02:42]}  dxe4 {[%clk 0:02:41]} 9. Qc2 {[%clk 0:02:34]}  cxd4 {[%clk 0:02:37]} 10. exd4 {[%clk 0:02:33]}  Rc8 {[%clk 0:02:37]} 11. Nxe4 {[%clk 0:02:18]}  Qxd4 {[%clk 0:02:37]} 12. Bd3 {[%clk 0:01:53]}  Qb6 {[%clk 0:02:21]} 13. Qe2 {[%clk 0:01:46]}  Nxe4 {[%clk 0:02:17]} 14. Bxe4 {[%clk 0:01:47]}  e6 {[%clk 0:02:14]} 15. Be3 {[%clk 0:01:42]}  Bc5 {[%clk 0:02:14]} 16. Bd2 {[%clk 0:01:30]}  Nf6 {[%clk 0:02:07]} 17. Bf3 {[%clk 0:01:26]}  O-O {[%clk 0:02:05]} 18. O-O-O {[%clk 0:01:26]}  Rfd8 {[%clk 0:01:55]} 19. g4 {[%clk 0:01:20]}  Rxd2 {[%clk 0:01:38]} 20. Kxd2 {[%clk 0:01:20]}  Qxb2+ {[%clk 0:01:37]} 21. Ke1 {[%clk 0:01:19]}  Qxc3+ {[%clk 0:01:37]} 22. Kf1 {[%clk 0:01:19]}  h6 {[%clk 0:01:10]} 23. Kg2 {[%clk 0:01:13]}  Qb4 {[%clk 0:01:07]} 24. Qd2 {[%clk 0:00:54]}  Qa4 {[%clk 0:00:56]} 25. g5 {[%clk 0:00:39]}  hxg5 {[%clk 0:00:54]} 26. fxg5 {[%clk 0:00:40]}  Ng4 {[%clk 0:00:52]} 27. Kg3 {[%clk 0:00:22]}  Bf2+ {[%clk 0:00:36]} 28. Kg2 {[%clk 0:00:16]}  Bb6 {[%clk 0:00:35]} 29. Qd7 {[%clk 0:00:14]}  Ne3+ {[%clk 0:00:31]} 30. Kh3 {[%clk 0:00:10]}  Qc2 {[%clk 0:00:21]} 31. Rd2 {[%clk 0:00:07]}  Qf5+ {[%clk 0:00:20]} 32. Kg3 {[%clk 0:00:07]}  Rc4 {[%clk 0:00:16]} 33. Qe8+ {[%clk 0:00:06]}  Kh7 {[%clk 0:00:16]} 34. Rf1 {[%clk 0:00:02]}  Qf4+ {[%clk 0:00:16]} 35. Kf2 {[%clk 0:00:02]}  Ng4+ {[%clk 0:00:14]} 36. Ke2 {[%clk 0:00:02]}  Qe3+ {[%clk 0:00:12]} 37. Kd1 {[%clk 0:00:02]}  Rd4 {[%clk 0:00:08]} 38. Rxd4 {[%clk 0:00:01]}  Qxd4+ {[%clk 0:00:09]} 39. Ke2 {[%clk 0:00:01]}  Qb2+ {[%clk 0:00:07]} 40. Kd1 {[%clk 0:00:02]}  Ne3+ {[%clk 0:00:06]} 41. Ke1 {[%clk 0:00:03]}  Ba5# {[%clk 0:00:06]} 0-1


[Site "https://www.chess.com"]

[Event "Titled Tuesday Blitz August 1 Late 2023"]
[White "Gabdushev, Ruslan"]
[Black "Jarmula, Lukasz"]
[WhiteFideId "4137833"]
[BlackFideId "1160664"]
[WhiteElo "2446"]
[BlackElo "2610"]
[Result "0-1"]
[Round "4"]
[TimeControl "180+1"]
[Date "2023.08.01"]
[WhiteClock "0:00:00"]
[BlackClock "0:00:20"]
[Board "66"]

1. g3 {[%clk 0:02:58]}  d5 {[%clk 0:02:56]} 2. Bg2 {[%clk 0:02:58]}  e5 {[%clk 0:02:56]} 3. d3 {[%clk 0:02:57]}  Nc6 {[%clk 0:02:53]} 4. c3 {[%clk 0:02:57]}  Be6 {[%clk 0:02:53]} 5. Nf3 {[%clk 0:02:53]}  f6 {[%clk 0:02:49]} 6. O-O {[%clk 0:02:50]}  Qd7 {[%clk 0:02:45]} 7. b4 {[%clk 0:02:41]}  O-O-O {[%clk 0:02:37]} 8. b5 {[%clk 0:02:37]}  Nce7 {[%clk 0:02:37]} 9. a4 {[%clk 0:02:31]}  h5 {[%clk 0:02:31]} 10. Nbd2 {[%clk 0:02:25]}  h4 {[%clk 0:02:26]} 11. Qc2 {[%clk 0:02:04]}  Bh3 {[%clk 0:02:22]} 12. Bh1 {[%clk 0:01:48]}  hxg3 {[%clk 0:02:13]} 13. fxg3 {[%clk 0:01:46]}  Nf5 {[%clk 0:02:04]} 14. Re1 {[%clk 0:01:36]}  Bc5+ {[%clk 0:01:59]} 15. d4 {[%clk 0:01:33]}  exd4 {[%clk 0:01:58]} 16. cxd4 {[%clk 0:01:30]}  Bxd4+ {[%clk 0:01:50]} 17. Nxd4 {[%clk 0:01:28]}  Nxd4 {[%clk 0:01:49]} 18. Qc5 {[%clk 0:01:20]}  Nf5 {[%clk 0:01:19]} 19. Qxa7 {[%clk 0:01:15]}  Qd6 {[%clk 0:01:19]} 20. Nf3 {[%clk 0:01:01]}  Nxg3 {[%clk 0:01:11]} 21. Qa8+ {[%clk 0:00:41]}  Kd7 {[%clk 0:01:10]} 22. Qxb7 {[%clk 0:00:41]}  Nxh1 {[%clk 0:01:00]} 23. Kxh1 {[%clk 0:00:36]}  Bg4 {[%clk 0:01:00]} 24. Qc6+ {[%clk 0:00:27]}  Qxc6 {[%clk 0:01:00]} 25. bxc6+ {[%clk 0:00:27]}  Kxc6 {[%clk 0:01:01]} 26. Bf4 {[%clk 0:00:26]}  Kd7 {[%clk 0:00:39]} 27. Rec1 {[%clk 0:00:24]}  Rc8 {[%clk 0:00:40]} 28. Nd4 {[%clk 0:00:17]}  g5 {[%clk 0:00:34]} 29. Bg3 {[%clk 0:00:15]}  Ne7 {[%clk 0:00:34]} 30. e3 {[%clk 0:00:13]}  c5 {[%clk 0:00:33]} 31. Nb3 {[%clk 0:00:11]}  c4 {[%clk 0:00:31]} 32. Nd4 {[%clk 0:00:10]}  Nf5 {[%clk 0:00:31]} 33. Nxf5 {[%clk 0:00:08]}  Bxf5 {[%clk 0:00:32]} 34. Kg1 {[%clk 0:00:07]}  Bd3 {[%clk 0:00:29]} 35. Rc3 {[%clk 0:00:05]}  Rhe8 {[%clk 0:00:26]} 36. Kf2 {[%clk 0:00:05]}  Re6 {[%clk 0:00:25]} 37. a5 {[%clk 0:00:04]}  Ra6 {[%clk 0:00:25]} 38. Kf3 {[%clk 0:00:03]}  Rca8 {[%clk 0:00:24]} 39. Rca3 {[%clk 0:00:03]}  Kc6 {[%clk 0:00:24]} 40. Be1 {[%clk 0:00:02]}  Rh8 {[%clk 0:00:21]} 41. Bg3 {[%clk 0:00:00]}  Be4+ {[%clk 0:00:20]} 0-1


[Site "https://www.chess.com"]

[Event "Titled Tuesday Blitz August 1 Late 2023"]
[White "brm72"]
[Black "Kirillov, Dmitry"]
[BlackFideId "34180572"]
[WhiteElo "2608"]
[BlackElo "2445"]
[Result "1-0"]
[Round "4"]
[TimeControl "180+1"]
[Date "2023.08.01"]
[WhiteClock "0:00:02"]
[BlackClock "0:00:00"]
[Board "67"]

1. e4 {[%clk 0:03:00]}  e5 {[%clk 0:02:59]} 2. Nf3 {[%clk 0:03:00]}  Nc6 {[%clk 0:03:00]} 3. d4 {[%clk 0:03:00]}  exd4 {[%clk 0:03:01]} 4. Nxd4 {[%clk 0:03:00]}  Bc5 {[%clk 0:03:01]} 5. Nb3 {[%clk 0:03:00]}  Bb6 {[%clk 0:03:01]} 6. Qe2 {[%clk 0:03:01]}  d6 {[%clk 0:03:01]} 7. Nc3 {[%clk 0:03:00]}  a5 {[%clk 0:03:01]} 8. Be3 {[%clk 0:02:47]}  a4 {[%clk 0:02:56]} 9. Bxb6 {[%clk 0:02:46]}  axb3 {[%clk 0:02:51]} 10. Be3 {[%clk 0:02:45]}  bxa2 {[%clk 0:02:46]} 11. Rxa2 {[%clk 0:02:45]}  Rxa2 {[%clk 0:02:45]} 12. Nxa2 {[%clk 0:02:46]}  Nf6 {[%clk 0:02:45]} 13. Nc3 {[%clk 0:02:46]}  O-O {[%clk 0:02:45]} 14. g3 {[%clk 0:02:46]}  Bg4 {[%clk 0:02:43]} 15. f3 {[%clk 0:02:43]}  Bh5 {[%clk 0:02:41]} 16. Bg2 {[%clk 0:02:41]}  d5 {[%clk 0:02:39]} 17. g4 {[%clk 0:02:29]}  Bg6 {[%clk 0:02:35]} 18. g5 {[%clk 0:02:16]}  Nxe4 {[%clk 0:02:02]} 19. fxe4 {[%clk 0:02:07]}  d4 {[%clk 0:02:01]} 20. O-O {[%clk 0:02:07]}  dxe3 {[%clk 0:01:59]} 21. Qxe3 {[%clk 0:02:06]}  Qd4 {[%clk 0:01:59]} 22. Qxd4 {[%clk 0:02:03]}  Nxd4 {[%clk 0:02:00]} 23. Rf2 {[%clk 0:02:01]}  c6 {[%clk 0:01:47]} 24. Rd2 {[%clk 0:02:00]}  Ne6 {[%clk 0:01:47]} 25. h4 {[%clk 0:01:58]}  Ra8 {[%clk 0:01:44]} 26. Rd1 {[%clk 0:01:52]}  Bh5 {[%clk 0:01:39]} 27. Rd7 {[%clk 0:01:49]}  Nc5 {[%clk 0:01:36]} 28. Rd2 {[%clk 0:01:42]}  Kf8 {[%clk 0:01:27]} 29. Kf2 {[%clk 0:01:42]}  Ke7 {[%clk 0:01:27]} 30. Ke3 {[%clk 0:01:41]}  Ra1 {[%clk 0:01:25]} 31. Kf4 {[%clk 0:01:11]}  Rg1 {[%clk 0:01:21]} 32. e5 {[%clk 0:01:06]}  Ne6+ {[%clk 0:01:17]} 33. Kg3 {[%clk 0:01:05]}  Re1 {[%clk 0:01:14]} 34. Ne4 {[%clk 0:00:58]}  Bg6 {[%clk 0:01:11]} 35. Nd6 {[%clk 0:00:57]}  Rxe5 {[%clk 0:01:05]} 36. Nxb7 {[%clk 0:00:49]}  Rb5 {[%clk 0:01:05]} 37. Bxc6 {[%clk 0:00:46]}  Rxb2 {[%clk 0:01:05]} 38. Rd7+ {[%clk 0:00:45]}  Kf8 {[%clk 0:01:01]} 39. c4 {[%clk 0:00:39]}  Rb3+ {[%clk 0:00:59]} 40. Kf2 {[%clk 0:00:37]}  Rc3 {[%clk 0:00:45]} 41. Bd5 {[%clk 0:00:36]}  Nf4 {[%clk 0:00:40]} 42. Nd6 {[%clk 0:00:22]}  Nh3+ {[%clk 0:00:38]} 43. Ke1 {[%clk 0:00:20]}  Rc1+ {[%clk 0:00:35]} 44. Kd2 {[%clk 0:00:20]}  Rc2+ {[%clk 0:00:36]} 45. Kd1 {[%clk 0:00:20]}  Nf2+ {[%clk 0:00:34]} 46. Ke1 {[%clk 0:00:21]}  Nd3+ {[%clk 0:00:33]} 47. Kf1 {[%clk 0:00:21]}  Ne5 {[%clk 0:00:20]} 48. Ra7 {[%clk 0:00:19]}  Bd3+ {[%clk 0:00:18]} 49. Ke1 {[%clk 0:00:17]}  Bxc4 {[%clk 0:00:06]} 50. Bxc4 {[%clk 0:00:15]}  Nxc4 {[%clk 0:00:05]} 51. Ra8+ {[%clk 0:00:14]}  Ke7 {[%clk 0:00:05]} 52. Nf5+ {[%clk 0:00:15]}  Kd7 {[%clk 0:00:01]} 53. Nxg7 {[%clk 0:00:15]}  Rc1+ {[%clk 0:00:01]} 54. Kf2 {[%clk 0:00:15]}  Rh1 {[%clk 0:00:02]} 55. Kg3 {[%clk 0:00:15]}  Nd6 {[%clk 0:00:02]} 56. Kg4 {[%clk 0:00:13]}  Rg1+ {[%clk 0:00:02]} 57. Kh5 {[%clk 0:00:14]}  Rh1 {[%clk 0:00:02]} 58. Rh8 {[%clk 0:00:11]}  Ne4 {[%clk 0:00:02]} 59. Rxh7 {[%clk 0:00:10]}  Ng3+ {[%clk 0:00:02]} 60. Kg4 {[%clk 0:00:10]}  Rg1 {[%clk 0:00:03]} 61. Nh5 {[%clk 0:00:09]}  Ne4+ {[%clk 0:00:03]} 62. Kf5 {[%clk 0:00:08]}  Nd6+ {[%clk 0:00:03]} 63. Kf6 {[%clk 0:00:07]}  Rf1+ {[%clk 0:00:04]} 64. Kg7 {[%clk 0:00:08]}  Rh1 {[%clk 0:00:04]} 65. Nf6+ {[%clk 0:00:06]}  Ke6 {[%clk 0:00:04]} 66. Rh8 {[%clk 0:00:06]}  Nf5+ {[%clk 0:00:05]} 67. Kf8 {[%clk 0:00:06]}  Ra1 {[%clk 0:00:05]} 68. h5 {[%clk 0:00:02]}  Ra8+ {[%clk 0:00:05]} 69. Ne8 {[%clk 0:00:03]}  Nd6 {[%clk 0:00:06]} 70. Kg7 {[%clk 0:00:03]}  Nxe8+ {[%clk 0:00:02]} 71. Kh6 {[%clk 0:00:01]}  Ke7 {[%clk 0:00:03]} 72. g6 {[%clk 0:00:02]}  fxg6 {[%clk 0:00:03]} 73. hxg6 {[%clk 0:00:03]}  Ra6 {[%clk 0:00:03]} 74. Kh7 {[%clk 0:00:03]}  Nf6+ {[%clk 0:00:03]} 75. Kg7 {[%clk 0:00:03]}  Ne8+ {[%clk 0:00:03]} 76. Kh7 {[%clk 0:00:02]}  Nf6+ {[%clk 0:00:04]} 77. Kg7 {[%clk 0:00:02]}  Ke6 {[%clk 0:00:03]} 78. Rf8 {[%clk 0:00:02]}  Nd7 {[%clk 0:00:03]} 79. Rf7 {[%clk 0:00:02]}  Kd6 {[%clk 0:00:02]} 80. Kh7 {[%clk 0:00:01]}  Kc7 {[%clk 0:00:00]} 81. g7 {[%clk 0:00:02]} 1-0


[Site "https://www.chess.com"]

[Event "Titled Tuesday Blitz August 1 Late 2023"]
[White "Carrasco Miranda, Andres"]
[Black "Ozates, Tuna"]
[WhiteFideId "3405990"]
[BlackFideId "6354521"]
[WhiteElo "2445"]
[BlackElo "2606"]
[Result "0-1"]
[Round "4"]
[TimeControl "180+1"]
[Date "2023.08.01"]
[WhiteClock "0:00:00"]
[BlackClock "0:00:14"]
[Board "68"]

1. d4 {[%clk 0:02:53]}  Nf6 {[%clk 0:02:56]} 2. c4 {[%clk 0:02:45]}  e6 {[%clk 0:02:56]} 3. g3 {[%clk 0:02:44]}  Bb4+ {[%clk 0:02:56]} 4. Nd2 {[%clk 0:02:44]}  O-O {[%clk 0:02:55]} 5. Bg2 {[%clk 0:02:44]}  d5 {[%clk 0:02:56]} 6. Nf3 {[%clk 0:02:45]}  dxc4 {[%clk 0:02:55]} 7. O-O {[%clk 0:02:44]}  c3 {[%clk 0:02:55]} 8. Nc4 {[%clk 0:02:44]}  cxb2 {[%clk 0:02:56]} 9. Bxb2 {[%clk 0:02:45]}  Nc6 {[%clk 0:02:42]} 10. Nfe5 {[%clk 0:02:40]}  Bd7 {[%clk 0:02:34]} 11. Nxc6 {[%clk 0:02:37]}  Bxc6 {[%clk 0:02:31]} 12. Bxc6 {[%clk 0:02:37]}  bxc6 {[%clk 0:02:32]} 13. Ne5 {[%clk 0:02:31]}  Qd5 {[%clk 0:02:22]} 14. Qa4 {[%clk 0:02:26]}  Bd6 {[%clk 0:02:18]} 15. Nxc6 {[%clk 0:02:20]}  Ng4 {[%clk 0:01:57]} 16. h3 {[%clk 0:01:19]}  Nf6 {[%clk 0:01:44]} 17. Rac1 {[%clk 0:01:11]}  h5 {[%clk 0:01:34]} 18. Qa5 {[%clk 0:00:53]}  Qe4 {[%clk 0:01:29]} 19. Rfe1 {[%clk 0:00:21]}  h4 {[%clk 0:01:28]} 20. g4 {[%clk 0:00:21]}  Nxg4 {[%clk 0:01:21]} 21. Ne5 {[%clk 0:00:07]}  Nxe5 {[%clk 0:00:42]} 22. dxe5 {[%clk 0:00:07]}  Bb4 {[%clk 0:00:43]} 23. Qa4 {[%clk 0:00:04]}  Qg6+ {[%clk 0:00:41]} 24. Kf1 {[%clk 0:00:04]}  Bxe1 {[%clk 0:00:41]} 25. Rxe1 {[%clk 0:00:05]}  Rab8 {[%clk 0:00:37]} 26. Ba3 {[%clk 0:00:04]}  Rfd8 {[%clk 0:00:33]} 27. Qxh4 {[%clk 0:00:04]}  Rd2 {[%clk 0:00:28]} 28. Qe7 {[%clk 0:00:03]}  Rd3 {[%clk 0:00:22]} 29. Qxc7 {[%clk 0:00:02]}  Rxh3 {[%clk 0:00:16]} 30. Qxb8+ {[%clk 0:00:02]}  Kh7 {[%clk 0:00:17]} 31. e3 {[%clk 0:00:02]}  Rh1+ {[%clk 0:00:15]} 32. Ke2 {[%clk 0:00:02]}  Qc2+ {[%clk 0:00:16]} 33. Kf3 {[%clk 0:00:00]}  Rxe1 {[%clk 0:00:14]} 0-1


[Site "https://www.chess.com"]

[Event "Titled Tuesday Blitz August 1 Late 2023"]
[White "Lima, Kleyton Alcantara"]
[Black "Jimenez Almeida, Luis David"]
[WhiteFideId "22718397"]
[BlackFideId "22242244"]
[WhiteElo "2421"]
[BlackElo "2603"]
[Result "1-0"]
[Round "4"]
[TimeControl "180+1"]
[Date "2023.08.01"]
[WhiteClock "0:00:27"]
[BlackClock "0:00:27"]
[Board "70"]

1. d4 {[%clk 0:02:42]}  g6 {[%clk 0:02:58]} 2. c4 {[%clk 0:02:43]}  Bg7 {[%clk 0:02:58]} 3. Nc3 {[%clk 0:02:43]}  c5 {[%clk 0:02:58]} 4. d5 {[%clk 0:02:43]}  Bxc3+ {[%clk 0:02:59]} 5. bxc3 {[%clk 0:02:44]}  Qa5 {[%clk 0:02:59]} 6. Bd2 {[%clk 0:02:38]}  f5 {[%clk 0:02:59]} 7. h4 {[%clk 0:02:36]}  Nf6 {[%clk 0:02:59]} 8. h5 {[%clk 0:02:36]}  Rg8 {[%clk 0:02:59]} 9. hxg6 {[%clk 0:02:33]}  hxg6 {[%clk 0:03:00]} 10. Nf3 {[%clk 0:02:32]}  d6 {[%clk 0:03:00]} 11. e3 {[%clk 0:02:32]}  Nbd7 {[%clk 0:03:00]} 12. Bd3 {[%clk 0:02:31]}  Nb6 {[%clk 0:03:00]} 13. Qe2 {[%clk 0:02:29]}  Bd7 {[%clk 0:02:57]} 14. g3 {[%clk 0:02:19]}  O-O-O {[%clk 0:02:56]} 15. Kf1 {[%clk 0:02:19]}  e6 {[%clk 0:02:40]} 16. dxe6 {[%clk 0:02:14]}  Bxe6 {[%clk 0:02:41]} 17. Ng5 {[%clk 0:02:14]}  Bd7 {[%clk 0:02:40]} 18. Nf7 {[%clk 0:02:13]}  Bc6 {[%clk 0:02:35]} 19. Nxd8 {[%clk 0:02:10]}  Bxh1 {[%clk 0:02:32]} 20. Nf7 {[%clk 0:02:11]}  Bc6 {[%clk 0:02:09]} 21. Nxd6+ {[%clk 0:02:09]}  Kd7 {[%clk 0:02:06]} 22. Nxf5 {[%clk 0:01:56]}  gxf5 {[%clk 0:02:04]} 23. Bxf5+ {[%clk 0:01:55]}  Kc7 {[%clk 0:02:00]} 24. e4 {[%clk 0:01:54]}  Kb8 {[%clk 0:01:55]} 25. e5 {[%clk 0:01:52]}  Rh8 {[%clk 0:01:50]} 26. f3 {[%clk 0:01:51]}  Ne8 {[%clk 0:01:44]} 27. Kg2 {[%clk 0:01:47]}  Qa4 {[%clk 0:01:33]} 28. e6 {[%clk 0:01:44]}  Nxc4 {[%clk 0:01:13]} 29. Bf4+ {[%clk 0:01:17]}  Ka8 {[%clk 0:01:14]} 30. Bd3 {[%clk 0:01:17]}  Nb6 {[%clk 0:01:06]} 31. Qe5 {[%clk 0:01:14]}  Nf6 {[%clk 0:00:43]} 32. Qxf6 {[%clk 0:01:11]}  Re8 {[%clk 0:00:44]} 33. Qf7 {[%clk 0:01:05]}  Qa3 {[%clk 0:00:42]} 34. Re1 {[%clk 0:00:58]}  Qxc3 {[%clk 0:00:36]} 35. Re3 {[%clk 0:00:55]}  Qd2+ {[%clk 0:00:32]} 36. Be2 {[%clk 0:00:39]}  Qd5 {[%clk 0:00:31]} 37. Rd3 {[%clk 0:00:27]}  Qxa2 {[%clk 0:00:29]} 38. Qxe8+ {[%clk 0:00:26]}  Bxe8 {[%clk 0:00:26]} 39. Rd8+ {[%clk 0:00:26]}  Nc8 {[%clk 0:00:27]} 40. Rxc8# {[%clk 0:00:27]} 1-0


[Site "https://www.chess.com"]

[Event "Titled Tuesday Blitz August 1 Late 2023"]
[White "Pinheiro, Iung Alicio de O."]
[Black "Shapiro, Daniel"]
[WhiteFideId "2104350"]
[BlackFideId "2001780"]
[WhiteElo "2602"]
[BlackElo "2390"]
[Result "1-0"]
[Round "4"]
[TimeControl "180+1"]
[Date "2023.08.01"]
[WhiteClock "0:00:12"]
[BlackClock "0:00:00"]
[Board "71"]

1. e4 {[%clk 0:03:00]}  c5 {[%clk 0:02:58]} 2. Nf3 {[%clk 0:03:00]}  d6 {[%clk 0:02:58]} 3. Nc3 {[%clk 0:02:59]}  Nc6 {[%clk 0:02:57]} 4. Bb5 {[%clk 0:02:49]}  Bd7 {[%clk 0:02:56]} 5. O-O {[%clk 0:02:48]}  e6 {[%clk 0:02:54]} 6. Re1 {[%clk 0:02:45]}  g5 {[%clk 0:02:41]} 7. d4 {[%clk 0:01:40]}  g4 {[%clk 0:02:39]} 8. d5 {[%clk 0:01:41]}  gxf3 {[%clk 0:02:36]} 9. dxc6 {[%clk 0:01:41]}  bxc6 {[%clk 0:02:37]} 10. Bc4 {[%clk 0:01:39]}  fxg2 {[%clk 0:02:35]} 11. Qh5 {[%clk 0:01:36]}  Qf6 {[%clk 0:02:25]} 12. e5 {[%clk 0:01:30]}  Qg6 {[%clk 0:02:19]} 13. Qh3 {[%clk 0:01:04]}  d5 {[%clk 0:02:01]} 14. Bd3 {[%clk 0:01:05]}  Qg7 {[%clk 0:02:01]} 15. b3 {[%clk 0:01:04]}  Ne7 {[%clk 0:01:52]} 16. Na4 {[%clk 0:00:54]}  Ng6 {[%clk 0:01:50]} 17. f4 {[%clk 0:00:48]}  Rg8 {[%clk 0:01:37]} 18. c4 {[%clk 0:00:47]}  Qh6 {[%clk 0:01:07]} 19. Qxh6 {[%clk 0:00:31]}  Bxh6 {[%clk 0:01:06]} 20. Bxg6 {[%clk 0:00:26]}  Rxg6 {[%clk 0:01:01]} 21. Nxc5 {[%clk 0:00:27]}  Ke7 {[%clk 0:00:43]} 22. Ba3 {[%clk 0:00:21]}  Rag8 {[%clk 0:00:24]} 23. Ne4+ {[%clk 0:00:15]}  Kd8 {[%clk 0:00:20]} 24. Nf6 {[%clk 0:00:12]}  Rh8 {[%clk 0:00:15]} 25. Bc1 {[%clk 0:00:12]}  Bg7 {[%clk 0:00:14]} 26. Be3 {[%clk 0:00:12]}  Bxf6 {[%clk 0:00:13]} 27. exf6 {[%clk 0:00:13]}  Rhg8 {[%clk 0:00:13]} 28. Rad1 {[%clk 0:00:11]}  Rg4 {[%clk 0:00:10]} 29. Rd2 {[%clk 0:00:12]}  R8g6 {[%clk 0:00:09]} 30. Ree2 {[%clk 0:00:12]}  Rxf6 {[%clk 0:00:07]} 31. Rxg2 {[%clk 0:00:12]}  Rxg2+ {[%clk 0:00:06]} 32. Rxg2 {[%clk 0:00:13]}  Ke7 {[%clk 0:00:06]} 33. Bc5+ {[%clk 0:00:13]}  Kd8 {[%clk 0:00:05]} 34. Rg8+ {[%clk 0:00:13]}  Kc7 {[%clk 0:00:06]} 35. Bd4 {[%clk 0:00:13]}  Rf5 {[%clk 0:00:05]} 36. Be5+ {[%clk 0:00:13]}  Kb6 {[%clk 0:00:05]} 37. Rf8 {[%clk 0:00:13]}  Kc5 {[%clk 0:00:03]} 38. cxd5 {[%clk 0:00:13]}  cxd5 {[%clk 0:00:03]} 39. Kf2 {[%clk 0:00:13]}  d4 {[%clk 0:00:04]} 40. Ke2 {[%clk 0:00:13]}  Kd5 {[%clk 0:00:02]} 41. Kd3 {[%clk 0:00:13]}  Bb5+ {[%clk 0:00:01]} 42. Kd2 {[%clk 0:00:13]}  Ke4 {[%clk 0:00:00]} 43. Rd8 {[%clk 0:00:12]} 1-0


[Site "https://www.chess.com"]